[Event "9th Amsterdam Science Park B 2019"]
[Site "Amsterdam"]
[Date "2019.07.08"]
[Round "3.8"]
[White "Bakkes, Frits"]
[Black "Adavatkar, Rugved"]
[Result "0-1"]
[ECO "B30"]
[WhiteElo "1638"]
[BlackElo "1678"]
[Annotator "NA"]
[PlyCount "104"]
[EventDate "2019.07.06"]
[EventType "swiss"]
[EventCountry "NED"]
[SourceTitle "playchess.com"]
[Source "ChessBase"]
[SourceQuality "1"]
[TimeControl "40/5400+30:1800+30"]

1. e4 {[%emt 0:00:06]} c5 {[%emt 0:00:00]} 2. Nf3 {[%emt 0:00:06]} Nc6 {[%emt 0:00:00]} 3. c3 {[%emt 0:00:10]} e5 {[%emt 0:01:45]} 4. Bb5 {[%emt 0:02:46]} d6 {[%emt 0:01:47]} 5. O-O {[%emt 0:00:38]} Nf6 {[%emt 0:00:34]} 6. d4 {[%emt 0:00:55]} cxd4 {[%emt 0:04:39]} 7. cxd4 {[%emt 0:01:04]} a6 {[%emt 0:01:12]} 8. Bxc6+ {[%emt 0:05:07]} bxc6 {[%emt 0:01:05]} 9. dxe5 {[%emt 0:00:55]} Nxe4 {[%emt 0:01:36]} 10. exd6 {[%emt 0:07:39]} Nxd6 {[%emt 0:04:33]} 11. Re1+ {[%emt 0:03:24]} Be7 {[%emt 0:01:17]} 12. Qe2 {[%emt 0:03:06]} Bg4 {[%emt 0:02:13]} 13. Nc3 {[%emt 0:05:15]} Nf5 {[%emt 0:02:48]} 14. h3 {[%emt 0:06:32]} Bxf3 {[%emt 0:01:56]} 15. Qxf3 {[%emt 0:00:12]} Nd4 {[%emt 0:00:47]} 16. Qe4 {[%emt 0:00:39]} f5 {[%emt 0:02:02]} 17. Qxe7+ {[%emt 0:03:23]} Qxe7 {[%emt 0:07:44]} 18. Rxe7+ {[%emt 0:00:05]} Kxe7 {[%emt 0:00:41]} 19. Bg5+ {[%emt 0:00:07]} Kd6 {[%emt 0:01:19]} 20. Rd1 {[%emt 0:00:30]} c5 {[%emt 0:02:20]} 21. b4 {[%emt 0:05:26]} Kc6 {[%emt 0:01:30]} 22. bxc5 {[%emt 0:00:26]} Kxc5 {[%emt 0:03:03]} 23. Na4+ {[%emt 0:01:52]} Kc4 {[%emt 0:04:33]} 24. Nb6+ {[%emt 0:01:50]} Kc5 {[%emt 0:00:10]} 25. Nxa8 {[%emt 0:00:19]} Rxa8 {[%emt 0:00:09]} 26. Be3 {[%emt 0:01:12]} Rd8 {[%emt 0:00:31]} 27. Kf1 {[%emt 0:01:38]} Kc4 {[%emt 0:01:28]} 28. Rb1 {[%emt 0:06:11]} Rd7 {[%emt 0:01:43]} 29. Rb8 {[%emt 0:04:09]} h6 {[%emt 0:03:13]} 30. Ra8 {[%emt 0:01:17]} Rd6 {[%emt 0:00:48]} 31. Rb8 {[%emt 0:09:24]} Nb5 {[%emt 0:01:04]} 32. Ke1 {[%emt 0:03:49]} Nc3 {[%emt 0:00:56]} 33. Rc8+ {[%emt 0:00:33]} Kd3 {[%emt 0:00:10]} 34. a3 {[%emt 0:03:16]} Kc2 {[%emt 0:01:28]} 35. f3 {[%emt 0:01:21]} Rd1+ {[%emt 0:04:24]} 36. Kf2 {[%emt 0:00:20]} Ra1 {[%emt 0:00:13]} 37. Bc5 {[%emt 0:01:01]} Kd3 {[%emt 0:02:27]} 38. Bb4 {[%emt 0:00:31]} Ra2+ {[%emt 0:00:21]} 39. Kg3 {[%emt 0:00:13]} Ne2+ {[%emt 0:00:49]} 40. Kh4 {[%emt 0:00:56]} Nf4 {[%emt 0:01:37]} 41. Rd8+ {[%emt 0:35:12]} Kc4 {[%emt 0:30:23]} 42. Rd2 {[%emt 0:02:50]} Ra1 {[%emt 0:05:19]} 43. Bd6 {[%emt 0:03:00]} g5+ {[%emt 0:02:09]} 44. Kg3 {[%emt 0:00:17]} Nd3 {[%emt 0:01:54]} 45. Be7 {[%emt 0:04:01]} Re1 {[%emt 0:00:55]} 46. Bf8 {[%emt 0:00:47]} h5 {[%emt 0:02:44]} 47. Rc2+ {[%emt 0:02:00]} Kb3 {[%emt 0:02:45]} 48. Rd2 {[%emt 0:00:54]} Kc3 {[%emt 0:00:53]} 49. Ra2 {[%emt 0:00:39]} Rh1 {[%emt 0:01:41]} 50. f4 {[%emt 0:02:06]} h4+ {[%emt 0:00:07]} 51. Kf3 {[%emt 0:00:14]} Rf1+ {[%emt 0:00:15]} 52. Ke2 {[%emt 0:00:31]} Rf2+ {[%emt 0:00:11] Ra1} 0-1

[Event "9th Amsterdam Science Park B 2019"]
[Site "Amsterdam"]
[Date "2019.07.08"]
[Round "3.9"]
[White "Boons, Joris"]
[Black "Jongsma, Kees"]
[Result "1-0"]
[ECO "B49"]
[WhiteElo "1512"]
[BlackElo "1381"]
[Annotator "NA"]
[PlyCount "87"]
[EventDate "2019.07.06"]
[EventType "swiss"]
[EventCountry "NED"]
[SourceTitle "playchess.com"]
[Source "ChessBase"]
[SourceQuality "1"]
[TimeControl "40/5400+30:1800+30"]

1. e4 {[%emt 0:06:39]} c5 {[%emt 0:00:00]} 2. Nf3 {[%emt 0:00:06]} e6 {[%emt 0:00:00]} 3. d4 {[%emt 0:00:04]} cxd4 {[%emt 0:00:01]} 4. Nxd4 {[%emt 0:00:08]} Nc6 {[%emt 0:00:06]} 5. Nc3 {[%emt 0:00:11]} Qc7 {[%emt 0:00:14]} 6. Be3 {[%emt 0:08:31]} a6 {[%emt 0:00:43]} 7. Be2 {[%emt 0:10:49]} b5 {[%emt 0:02:54]} 8. O-O {[%emt 0:03:03]} Nf6 {[%emt 0:02:13]} 9. a3 {[%emt 0:01:59]} Be7 {[%emt 0:03:52]} 10. f4 {[%emt 0:00:24]} Nxd4 {[%emt 0:04:07]} 11. Qxd4 {[%emt 0:02:37]} d6 {[%emt 0:01:49]} 12. Rad1 {[%emt 0:00:36]} O-O {[%emt 0:02:49]} 13. e5 {[%emt 0:06:12]} dxe5 {[%emt 0:02:48]} 14. fxe5 {[%emt 0:00:02]} Nd7 {[%emt 0:01:45]} 15. Ne4 {[%emt 0:00:42]} Qxe5 {[%emt 0:12:37]} 16. Qxe5 {[%emt 0:00:06]} Nxe5 {[%emt 0:00:25]} 17. Bc5 {[%emt 0:00:09]} Ng6 {[%emt 0:06:41]} 18. Bf3 {[%emt 0:07:41]} Bxc5+ {[%emt 0:05:11]} 19. Nxc5 {[%emt 0:01:32]} Ra7 {[%emt 0:00:16]} 20. Rd6 {[%emt 0:02:08]} Ne7 {[%emt 0:10:11]} 21. Rfd1 {[%emt 0:01:05]} Rc7 {[%emt 0:04:24]} 22. b4 {[%emt 0:01:36]} g6 {[%emt 0:01:40]} 23. Kf2 {[%emt 0:01:17]} Nd5 {[%emt 0:03:04]} 24. Bxd5 {[%emt 0:02:46]} exd5 {[%emt 0:01:01]} 25. R1xd5 {[%emt 0:00:55]} Re8 {[%emt 0:01:57]} 26. Rd8 {[%emt 0:01:35]} Rce7 {[%emt 0:00:51]} 27. Rxe8+ {[%emt 0:05:40]} Rxe8 28. Rd6 {[%emt 0:03:11]} Be6 {[%emt 0:01:59]} 29. Rxa6 {[%emt 0:04:38]} Bc4 {[%emt 0:00:41]} 30. Nd3 {[%emt 0:01:50]} Rd8 {[%emt 0:06:23]} 31. Ke3 {[%emt 0:01:09]} Kg7 {[%emt 0:02:20]} 32. Ne5 {[%emt 0:02:08]} Re8 {[%emt 0:02:11]} 33. Kd4 {[%emt 0:00:29]} Bf1 {[%emt 0:02:27]} 34. Ra7 {[%emt 0:00:51]} Rd8+ {[%emt 0:01:59]} 35. Kc5 {[%emt 0:00:37]} Rc8+ {[%emt 0:00:14]} 36. Kb6 {[%emt 0:00:24]} Bc4 {[%emt 0:00:52]} 37. Nxc4 {[%emt 0:00:40]} bxc4 {[%emt 0:02:24]} 38. a4 {[%emt 0:00:53]} Rd8 {[%emt 0:01:26]} 39. a5 {[%emt 0:01:24]} Rd2 {[%emt 0:00:36]} 40. a6 {[%emt 0:03:22]} Rxc2 {[%emt 0:00:36]} 41. Rc7 {[%emt 0:30:15]} c3 {[%emt 0:31:42]} 42. a7 {[%emt 0:00:09]} Ra2 {[%emt 0:01:36]} 43. Rxc3 {[%emt 0:00:30]} Ra4 {[%emt 0:01:02]} 44. b5 {[%emt 0:00:33]} 1-0

[Event "9th Amsterdam Science Park B 2019"]
[Site "Amsterdam"]
[Date "2019.07.08"]
[Round "3.10"]
[White "Belozerova, Olga"]
[Black "Hospes, Peter"]
[Result "1-0"]
[ECO "A40"]
[WhiteElo "1276"]
[BlackElo "1474"]
[Annotator "NA"]
[PlyCount "53"]
[EventDate "2019.07.06"]
[EventType "swiss"]
[EventCountry "NED"]
[SourceTitle "playchess.com"]
[Source "ChessBase"]
[SourceQuality "1"]
[TimeControl "40/5400+30:1800+30"]

1. d4 {[%emt 0:00:00]} b5 {[%emt 0:00:04]} 2. Nf3 {[%emt 0:00:05]} Bb7 {[%emt 0:00:34]} 3. e3 {[%emt 0:00:43]} a6 {[%emt 0:00:39]} 4. Bd3 {[%emt 0:00:36]} Nf6 {[%emt 0:02:01]} 5. Nbd2 {[%emt 0:01:12]} e6 {[%emt 0:01:19]} 6. c4 {[%emt 0:02:35]} c6 {[%emt 0:02:19]} 7. O-O {[%emt 0:00:54]} Be7 {[%emt 0:02:21]} 8. b3 {[%emt 0:01:11]} d6 {[%emt 0:01:53]} 9. Bb2 {[%emt 0:01:19]} h5 {[%emt 0:05:33]} 10. e4 {[%emt 0:11:15]} Nbd7 {[%emt 0:06:43]} 11. h3 {[%emt 0:02:18]} Qc7 {[%emt 0:08:11]} 12. Qc2 {[%emt 0:04:06]} b4 {[%emt 0:02:50]} 13. e5 {[%emt 0:05:10]} dxe5 {[%emt 0:03:30]} 14. dxe5 {[%emt 0:00:13]} Ng8 {[%emt 0:01:24]} 15. Ne4 {[%emt 0:02:02]} c5 {[%emt 0:04:39]} 16. Nd6+ {[%emt 0:00:59]} Bxd6 {[%emt 0:04:20]} 17. exd6 {[%emt 0:00:18]} Qxd6 {[%emt 0:01:00]} 18. Bxg7 {[%emt 0:00:33]} Bxf3 {[%emt 0:02:39]} 19. Be4 {[%emt 0:03:22]} Bxg2 {[%emt 0:06:49]} 20. Bxg2 {[%emt 0:09:34]} O-O-O {[%emt 0:04:08]} 21. Bxh8 {[%emt 0:01:04]} e5 {[%emt 0:07:53]} 22. Qe4 {[%emt 0:00:57]} Re8 {[%emt 0:01:36]} 23. Rad1 {[%emt 0:08:09]} Qc7 {[%emt 0:08:36]} 24. Qc6 {[%emt 0:01:03]} Re6 {[%emt 0:06:06]} 25. Qxc7+ {[%emt 0:02:42]} Kxc7 {[%emt 0:00:18]} 26. f4 {[%emt 0:01:17]} Rh6 {[%emt 0:05:07]} 27. Bxe5+ {[%emt 0:00:22]} 1-0

[Event "9th Amsterdam Science Park B 2019"]
[Site "Amsterdam"]
[Date "2019.07.09"]
[Round "4.1"]
[White "Emans, Job"]
[Black "Van de Kamp, Rob"]
[Result "1/2-1/2"]
[ECO "D45"]
[WhiteElo "1989"]
[BlackElo "1936"]
[Annotator "NA"]
[PlyCount "92"]
[EventDate "2019.07.06"]
[EventType "swiss"]
[EventCountry "NED"]
[SourceTitle "playchess.com"]
[Source "ChessBase"]
[SourceQuality "1"]
[TimeControl "40/5400+30:1800+30"]

1. d4 {[%emt 0:06:06]} d5 {[%emt 0:00:00]} 2. c4 {[%emt 0:00:07]} c6 {[%emt 0:00:00]} 3. Nc3 {[%emt 0:00:06]} Nf6 {[%emt 0:00:15]} 4. Nf3 {[%emt 0:00:26]} e6 {[%emt 0:00:29]} 5. e3 {[%emt 0:00:30]} Nbd7 {[%emt 0:00:40]} 6. Qc2 {[%emt 0:00:39]} a6 {[%emt 0:00:53]} 7. a4 {[%emt 0:07:05]} Bb4 {[%emt 0:05:40]} 8. Bd2 {[%emt 0:00:56]} Qe7 {[%emt 0:01:53]} 9. Bd3 {[%emt 0:01:23]} O-O {[%emt 0:07:06]} 10. O-O {[%emt 0:00:52]} h6 {[%emt 0:09:48]} 11. Rfe1 {[%emt 0:02:21]} e5 {[%emt 0:03:31]} 12. dxe5 {[%emt 0:07:40]} Nxe5 {[%emt 0:00:27]} 13. Nxe5 {[%emt 0:03:35]} Qxe5 {[%emt 0:00:15]} 14. Nxd5 {[%emt 0:01:21]} Nxd5 {[%emt 0:00:03]} 15. cxd5 {[%emt 0:00:04]} Bxd2 {[%emt 0:00:25]} 16. Qxd2 {[%emt 0:00:05]} Qxd5 {[%emt 0:04:10]} 17. Qc2 {[%emt 0:02:51]} Be6 {[%emt 0:01:49]} 18. e4 {[%emt 0:11:21]} Qd4 {[%emt 0:06:10]} 19. Red1 {[%emt 0:08:26]} Qb4 {[%emt 0:03:36]} 20. Ra3 {[%emt 0:01:25]} Rfd8 {[%emt 0:03:29]} 21. f4 {[%emt 0:24:14]} f6 {[%emt 0:14:16]} 22. Qe2 {[%emt 0:04:22]} Rd4 {[%emt 0:05:10]} 23. f5 {[%emt 0:02:43]} Bf7 {[%emt 0:00:24]} 24. Rf1 {[%emt 0:01:09]} Rad8 {[%emt 0:01:24]} 25. e5 {[%emt 0:05:51]} fxe5 {[%emt 0:01:37]} 26. f6 {[%emt 0:00:30]} e4 {[%emt 0:04:17]} 27. Qg4 {[%emt 0:01:46]} g6 {[%emt 0:00:46]} 28. Bb1 {[%emt 0:00:54]} e3 {[%emt 0:12:39]} 29. Qg3 {[%emt 0:00:59]} e2 {[%emt 0:00:01]} 30. Bxg6 {[%emt 0:02:13]} exf1=Q+ {[%emt 0:00:05]} 31. Kxf1 {[%emt 0:00:01]} Rg4 {[%emt 0:02:41]} 32. Bxf7+ {[%emt 0:00:11]} Kxf7 {[%emt 0:00:01]} 33. Qc7+ {[%emt 0:00:09]} Kg6 {[%emt 0:01:34]} 34. Qg7+ {[%emt 0:02:59]} Kf5 {[%emt 0:03:02]} 35. Qh7+ {[%emt 0:00:45]} Ke5 {[%emt 0:01:08]} 36. Re3+ {[%emt 0:00:13]} Re4 {[%emt 0:00:26]} 37. Rxe4+ {[%emt 0:00:26]} Qxe4 {[%emt 0:01:15]} 38. Qe7+ {[%emt 0:00:02]} Kf5 {[%emt 0:00:43]} 39. Qxd8 {[%emt 0:00:03]} Qb1+ {[%emt 0:00:14]} 40. Kf2 {[%emt 0:00:45]} Qxb2+ {[%emt 0:00:13]} 41. Kg1 {[%emt 0:20:10]} Qxf6 {[%emt 0:04:18]} 42. Qd3+ {[%emt 0:00:14]} Ke6 {[%emt 0:01:13]} 43. Qb3+ {[%emt 0:00:13]} Kd6 {[%emt 0:00:47]} 44. Qxb7 {[%emt 0:00:28]} Qd4+ {[%emt 0:00:18]} 45. Kf1 {[%emt 0:00:06]} Qxa4 {[%emt 0:00:13]} 46. Qb8+ {[%emt 0:00:14]} Kd7 {[%emt 0:06:23]} 1/2-1/2

[Event "9th Amsterdam Science Park B 2019"]
[Site "Amsterdam"]
[Date "2019.07.09"]
[Round "4.2"]
[White "Duson, Robin"]
[Black "Van der Eyk, Dick"]
[Result "1/2-1/2"]
[ECO "D26"]
[WhiteElo "1936"]
[BlackElo "1949"]
[Annotator "NA"]
[PlyCount "42"]
[EventDate "2019.07.06"]
[EventType "swiss"]
[EventCountry "NED"]
[SourceTitle "playchess.com"]
[Source "ChessBase"]
[SourceQuality "1"]
[TimeControl "40/5400+30:1800+30"]

1. d4 {[%emt 0:00:00]} d5 {[%emt 0:00:00]} 2. c4 {[%emt 0:00:00]} dxc4 {[%emt 0:00:00]} 3. Nf3 {[%emt 0:00:02]} Nf6 {[%emt 0:00:00]} 4. e3 {[%emt 0:00:08]} e6 {[%emt 0:00:06]} 5. Bxc4 {[%emt 0:00:13]} c5 {[%emt 0:00:04]} 6. O-O {[%emt 0:00:10]} Nc6 {[%emt 0:00:14]} 7. Nc3 {[%emt 0:05:10]} a6 {[%emt 0:00:51]} 8. Bb3 {[%emt 0:01:03]} b5 {[%emt 0:01:26]} 9. a4 {[%emt 0:11:35]} b4 {[%emt 0:04:52]} 10. Nb1 {[%emt 0:08:38]} cxd4 {[%emt 0:02:07]} 11. exd4 {[%emt 0:02:24]} Be7 {[%emt 0:01:19]} 12. Bg5 {[%emt 0:02:04]} O-O {[%emt 0:01:07]} 13. Qd3 {[%emt 0:05:28]} Bb7 {[%emt 0:33:27]} 14. Nbd2 {[%emt 0:03:53]} Nd5 {[%emt 0:05:05]} 15. Ne4 {[%emt 0:06:49]} h6 {[%emt 0:10:43]} 16. Bxe7 {[%emt 0:01:37]} Ncxe7 {[%emt 0:00:51]} 17. Nc5 {[%emt 0:01:50]} Nf4 {[%emt 0:11:10]} 18. Nxb7 {[%emt 0:08:42]} Nxd3 {[%emt 0:00:05]} 19. Nxd8 {[%emt 0:00:11]} Rfxd8 {[%emt 0:00:29]} 20. g3 {[%emt 0:01:39]} Rac8 {[%emt 0:05:20]} 21. Ne5 {[%emt 0:10:57]} Nxe5 {[%emt 0:01:57]} 1/2-1/2

[Event "9th Amsterdam Science Park B 2019"]
[Site "Amsterdam"]
[Date "2019.07.09"]
[Round "4.3"]
[White "Dambrink, Wouter"]
[Black "Sterrenburg, Kees"]
[Result "1-0"]
[ECO "A46"]
[WhiteElo "1931"]
[BlackElo "1947"]
[Annotator "NA"]
[PlyCount "71"]
[EventDate "2019.07.06"]
[EventType "swiss"]
[EventCountry "NED"]
[SourceTitle "playchess.com"]
[Source "ChessBase"]
[SourceQuality "1"]
[TimeControl "40/5400+30:1800+30"]

1. d4 {[%emt 0:00:00]} Nf6 {[%emt 0:00:00]} 2. Nf3 {[%emt 0:00:00]} d6 {[%emt 0:00:00]} 3. c4 {[%emt 0:00:18]} Bf5 {[%emt 0:00:00]} 4. Qb3 {[%emt 0:01:19]} Qc8 {[%emt 0:00:25]} 5. g3 {[%emt 0:01:20]} Nc6 {[%emt 0:00:26]} 6. d5 {[%emt 0:03:19]} Nb8 {[%emt 0:00:35]} 7. Nc3 {[%emt 0:03:29]} Nbd7 {[%emt 0:01:46]} 8. Nd4 {[%emt 0:05:22]} Nc5 {[%emt 0:01:13]} 9. Qd1 {[%emt 0:05:18]} Bh3 {[%emt 0:05:56]} 10. b4 {[%emt 0:06:51]} Bxf1 {[%emt 0:09:54]} 11. Rxf1 {[%emt 0:05:27]} e5 {[%emt 0:06:06]} 12. bxc5 {[%emt 0:07:15]} exd4 {[%emt 0:00:11]} 13. Qxd4 {[%emt 0:00:17]} dxc5 {[%emt 0:00:08]} 14. Qe5+ {[%emt 0:02:56]} Kd7 {[%emt 0:12:34]} 15. e4 {[%emt 0:16:04]} Bd6 {[%emt 0:02:46]} 16. Qg5 {[%emt 0:05:25]} Qe8 {[%emt 0:00:47]} 17. f4 {[%emt 0:06:59]} h6 {[%emt 0:03:34]} 18. Qf5+ {[%emt 0:02:02]} Kd8 {[%emt 0:00:13]} 19. Kf2 {[%emt 0:05:44]} Be7 {[%emt 0:15:35]} 20. e5 {[%emt 0:05:23]} g6 {[%emt 0:01:51]} 21. Qd3 {[%emt 0:00:47]} Nh5 {[%emt 0:02:48]} 22. Rb1 {[%emt 0:03:40]} Rb8 {[%emt 0:08:44]} 23. Nb5 {[%emt 0:02:09]} Qd7 {[%emt 0:00:44]} 24. Nxa7 {[%emt 0:03:28]} Ke8 {[%emt 0:02:43]} 25. e6 {[%emt 0:03:32]} Qa4 {[%emt 0:01:07]} 26. Nc6 {[%emt 0:01:16]} Qxa2+ {[%emt 0:00:50]} 27. Rb2 {[%emt 0:00:38]} Qa8 {[%emt 0:00:05]} 28. exf7+ {[%emt 0:00:47]} Kxf7 {[%emt 0:00:01]} 29. Nxe7 {[%emt 0:00:23]} Qa6 {[%emt 0:03:18]} 30. Re1 {[%emt 0:01:43]} Ng7 {[%emt 0:00:30]} 31. Rbe2 {[%emt 0:01:19]} Rbd8 {[%emt 0:00:40]} 32. Re6 {[%emt 0:00:44]} Qxe6 {[%emt 0:01:32]} 33. Rxe6 {[%emt 0:00:26]} Nxe6 {[%emt 0:00:10]} 34. Qxg6+ {[%emt 0:00:15]} Kxe7 {[%emt 0:00:07]} 35. Qxe6+ {[%emt 0:00:09]} Kf8 {[%emt 0:00:22]} 36. Qf6+ 1-0

[Event "9th Amsterdam Science Park B 2019"]
[Site "Amsterdam"]
[Date "2019.07.09"]
[Round "4.4"]
[White "Eveleens, Wim"]
[Black "Aalten, Evert"]
[Result "1/2-1/2"]
[ECO "A36"]
[WhiteElo "2005"]
[BlackElo "1931"]
[Annotator "NA"]
[PlyCount "71"]
[EventDate "2019.07.06"]
[EventType "swiss"]
[EventCountry "NED"]
[SourceTitle "playchess.com"]
[Source "ChessBase"]
[SourceQuality "1"]
[TimeControl "40/5400+30:1800+30"]

1. g3 {[%emt 0:00:00]} c5 {[%emt 0:00:00]} 2. c4 {[%emt 0:00:00]} g6 {[%emt 0:00:05]} 3. Nc3 {[%emt 0:00:00]} Nc6 {[%emt 0:00:30]} 4. Bg2 {[%emt 0:00:00]} Bg7 {[%emt 0:00:13]} 5. d3 {[%emt 0:00:01]} a6 {[%emt 0:04:19]} 6. a4 {[%emt 0:00:18]} Nf6 {[%emt 0:00:23]} 7. e4 {[%emt 0:00:02]} O-O {[%emt 0:00:27]} 8. Nge2 {[%emt 0:00:04]} d6 {[%emt 0:00:47]} 9. O-O {[%emt 0:00:04]} Rb8 {[%emt 0:00:25]} 10. h3 {[%emt 0:00:20]} Ne8 {[%emt 0:00:31]} 11. Be3 {[%emt 0:02:16]} Nc7 {[%emt 0:01:59]} 12. d4 {[%emt 0:00:45]} cxd4 {[%emt 0:01:28]} 13. Nxd4 {[%emt 0:00:05]} Ne6 {[%emt 0:00:30]} 14. Nde2 {[%emt 0:00:10]} Bd7 {[%emt 0:01:04]} 15. Qd2 {[%emt 0:08:57]} Nc5 {[%emt 0:01:54]} 16. Rab1 {[%emt 0:00:32]} Nb4 {[%emt 0:01:19]} 17. b3 {[%emt 0:01:11]} b6 {[%emt 0:10:02]} 18. Bd4 {[%emt 0:07:48]} a5 {[%emt 0:02:02]} 19. Bxg7 {[%emt 0:03:26]} Kxg7 {[%emt 0:00:48]} 20. Nd4 {[%emt 0:05:28]} Ne6 {[%emt 0:12:37]} 21. Nd5 {[%emt 0:15:47]} Nc6 {[%emt 0:07:16]} 22. Nxe6+ {[%emt 0:02:13]} fxe6 {[%emt 0:01:11]} 23. Ne3 {[%emt 0:03:09]} Qc7 {[%emt 0:01:27]} 24. f4 {[%emt 0:02:16]} Nb4 {[%emt 0:00:22]} 25. Rbd1 {[%emt 0:03:55]} Qc5 {[%emt 0:02:09]} 26. Kh2 {[%emt 0:00:39]} Rbd8 {[%emt 0:02:46]} 27. g4 {[%emt 0:05:52]} g5 {[%emt 0:01:43]} 28. Qc3+ {[%emt 0:03:05]} Kg8 {[%emt 0:01:02]} 29. f5 {[%emt 0:00:06]} Na2 {[%emt 0:10:08]} 30. Qb2 {[%emt 0:16:46]} Nb4 {[%emt 0:02:33]} 31. Qc3 {[%emt 0:05:22]} Na2 {[%emt 0:00:12]} 32. Qd4 {[%emt 0:00:53]} Qxd4 {[%emt 0:00:10]} 33. Rxd4 {[%emt 0:00:01]} Nb4 {[%emt 0:00:14]} 34. fxe6 {[%emt 0:03:49]} Rxf1 {[%emt 0:00:52]} 35. Bxf1 {[%emt 0:00:10]} Bxe6 {[%emt 0:00:07]} 36. Rd2 {[%emt 0:07:09]} 1/2-1/2

[Event "9th Amsterdam Science Park B 2019"]
[Site "Amsterdam"]
[Date "2019.07.09"]
[Round "4.5"]
[White "Sula, Avni"]
[Black "Gutmann, Alois"]
[Result "0-1"]
[ECO "A40"]
[WhiteElo "1978"]
[BlackElo "2036"]
[Annotator "NA"]
[PlyCount "118"]
[EventDate "2019.07.06"]
[EventType "swiss"]
[EventCountry "NED"]
[SourceTitle "playchess.com"]
[Source "ChessBase"]
[SourceQuality "1"]
[TimeControl "40/5400+30:1800+30"]

1. d4 {[%emt 0:00:00]} e6 {[%emt 0:00:00]} 2. Nf3 {[%emt 0:00:03]} f5 {[%emt 0:00:00]} 3. Bf4 {[%emt 0:00:27]} Nf6 {[%emt 0:00:25]} 4. e3 {[%emt 0:00:30]} b6 {[%emt 0:01:01]} 5. h3 {[%emt 0:01:11]} Bb7 {[%emt 0:01:41]} 6. Nbd2 {[%emt 0:03:14]} Be7 {[%emt 0:03:11]} 7. g4 {[%emt 0:04:23]} Ne4 {[%emt 0:08:31]} 8. gxf5 {[%emt 0:03:53]} Nxd2 {[%emt 0:03:05]} 9. Kxd2 {[%emt 0:00:32]} exf5 {[%emt 0:00:16]} 10. Rg1 {[%emt 0:01:33]} Bf6 {[%emt 0:16:42]} 11. Bc4 {[%emt 0:08:06]} Qe7 {[%emt 0:02:11]} 12. Kc1 {[%emt 0:02:04]} Nc6 {[%emt 0:10:06]} 13. Bd5 {[%emt 0:09:19]} O-O-O {[%emt 0:05:43]} 14. c3 {[%emt 0:02:44]} Na5 {[%emt 0:06:03]} 15. Bxb7+ {[%emt 0:02:30]} Nxb7 {[%emt 0:01:19]} 16. Be5 {[%emt 0:00:21]} Kb8 {[%emt 0:05:48]} 17. Bxf6 {[%emt 0:03:31]} gxf6 {[%emt 0:03:08]} 18. Qd3 {[%emt 0:04:04]} Nd6 {[%emt 0:00:38]} 19. Nh4 {[%emt 0:05:58]} Rhg8 {[%emt 0:08:29]} 20. Kc2 {[%emt 0:01:01]} Qe6 {[%emt 0:06:12]} 21. Ng2 {[%emt 0:03:50]} Qf7 {[%emt 0:03:09]} 22. Qe2 {[%emt 0:05:07]} Rg7 {[%emt 0:01:37]} 23. Nf4 {[%emt 0:02:02]} Rxg1 {[%emt 0:01:15]} 24. Rxg1 {[%emt 0:00:11]} Qxa2 {[%emt 0:00:10]} 25. Rg7 {[%emt 0:06:40]} Rg8 {[%emt 0:00:37]} 26. Rxg8+ {[%emt 0:02:46]} Qxg8 {[%emt 0:00:02]} 27. Qh5 {[%emt 0:01:15]} a5 {[%emt 0:01:48]} 28. d5 {[%emt 0:01:23]} a4 {[%emt 0:01:36]} 29. c4 {[%emt 0:01:41]} Kb7 {[%emt 0:05:24]} 30. Qe2 {[%emt 0:03:16]} Qe8 {[%emt 0:00:55]} 31. Kc3 {[%emt 0:02:17]} Ne4+ {[%emt 0:00:22]} 32. Kc2 {[%emt 0:01:23]} Nc5 {[%emt 0:00:30]} 33. Qd1 {[%emt 0:04:18]} Qe4+ {[%emt 0:00:35]} 34. Kc3 {[%emt 0:01:13]} Qe5+ {[%emt 0:00:33]} 35. Kc2 {[%emt 0:01:52]} Qe4+ {[%emt 0:00:30]} 36. Kc3 {[%emt 0:00:29]} Qe5+ {[%emt 0:00:37]} 37. Kc2 {[%emt 0:00:20]} Ne4 {[%emt 0:02:00]} 38. Nd3 {[%emt 0:05:38]} Qh2 {[%emt 0:00:51]} 39. Kb1 {[%emt 0:00:22]} Qxh3 {[%emt 0:00:46]} 40. Nf4 {[%emt 0:01:14]} Qf1 {[%emt 0:01:35]} 41. Qxf1 {[%emt 0:30:37]} Nd2+ {[%emt 0:30:04]} 42. Kc2 {[%emt 0:00:22]} Nxf1 {[%emt 0:00:04]} 43. Kd3 {[%emt 0:05:24]} Nh2 {[%emt 0:00:00]} 44. Nh5 {[%emt 0:00:00]} Ng4 {[%emt 0:00:00]} 45. Kd4 {[%emt 0:00:00]} Nxf2 {[%emt 0:00:00]} 46. Nxf6 {[%emt 0:00:00]} h6 {[%emt 0:00:00]} 47. Nh5 {[%emt 0:00:00]} Nd1 {[%emt 0:00:00]} 48. Ng3 {[%emt 0:00:00]} Nxb2 {[%emt 0:00:00]} 49. Nxf5 {[%emt 0:00:00]} a3 {[%emt 0:00:00]} 50. Kc3 {[%emt 0:00:00]} Nxc4 {[%emt 0:00:00]} 51. Kb3 {[%emt 0:00:00]} h5 {[%emt 0:00:00]} 52. Ka2 {[%emt 0:00:00]} b5 {[%emt 0:00:00]} 53. e4 {[%emt 0:00:00]} Kb6 {[%emt 0:00:00]} 54. e5 {[%emt 0:00:00]} Nxe5 {[%emt 0:00:00]} 55. Kxa3 {[%emt 0:00:00]} Nf3 {[%emt 0:00:00]} 56. Kb4 {[%emt 0:00:00]} h4 {[%emt 0:00:00]} 57. Ne3 {[%emt 0:00:00]} h3 {[%emt 0:00:00]} 58. Nf5 {[%emt 0:00:00]} h2 {[%emt 0:00:00]} 59. Ng3 {[%emt 0:00:00]} Ng1 {[%emt 0:00:00]} 0-1